Cogmind - Beta 11 @@@ ROGUE MODE // 2022.03.25 @ 22:45:53 Player: Shadow Pussy wanter Result: Self-destructed Performance ------------- Evolutions (2) 1000 Regions Visited (3) 600 Robots Destroyed (43) 215 Value Destroyed (1096) 1096 Prototype IDs (1) 20 Alien Tech Used (0) 0 Bonus (47) 47 TOTAL SCORE: 2978 Bonus ------- High Alert Combat Kills 47 Cogmind --------- Core Integrity 487/550 Matter 275/300 Energy 102/160 System Corruption 0% Temperature Warm (199) Movement Treading (225) Ox1 Location -8/Materials Parts ------- > --- POWER (1) -------- Light Nuclear Core > --- PROPULSION (4) --- Armored Treads Advanced Treads Aluminum Leg > --- UTILITY (3) ------ Medium Storage Unit Improved Terrain Scanner > --- WEAPON (3) ------- Improved EM Shotgun Improved EM Shotgun Shock Rifle > --- INVENTORY (10) --- Ion Engine Light Treads Aluminum Leg Wheel Improved Signal Interpreter Hacking Suite Missile Launcher Peak State ------------ > --- POWER ------------ Light Nuclear Core > --- PROPULSION ------- Armored Treads Aluminum Leg Aluminum Leg Aluminum Leg > --- UTILITY ---------- Heat Sink Medium Storage Unit Improved Terrain Scanner > --- WEAPON ----------- Improved EM Shotgun Improved EM Shotgun Improved EM Shotgun > --- INVENTORY -------- Ion Engine Light Treads Advanced Treads Aluminum Leg Wheel Light Armor Plating Hacking Suite Improved EM Shotgun Shock Rifle Missile Launcher [Rating: 25] Favorites ----------- Power Ion Engine Engine Ion Engine Power Core Light Nuclear Core Propulsion Aluminum Leg Treads Light Treads Leg Aluminum Leg Wheel Wheel Utility Terrain Scanner Device Terrain Scanner Storage Medium Storage Unit Weapon Improved EM Shotgun Energy Gun Improved EM Shotgun Ballistic Gun Light Assault Rifle Build | -11 -10 -9 -8 ------- Run | Scr Mat Mat Mat Slots Evolved 4 | . . 2 2 Power . | . . . . Propulsion 2 | . . 2 . Utility 1 | . . . 1 Weapon 1 | . . . 1 Parts Attached 30 | 7 4 10 9 Power 3 | 1 . 1 1 Engine 2 | 1 . 1 . Core 1 | . . . 1 Reactor . | . . . . Propulsion 11 | 2 2 4 3 Treads 6 | . . 4 2 Leg 3 | . 2 . 1 Wheel 2 | 2 . . . Hover . | . . . . Flight . | . . . . Utility 7 | 2 1 2 2 Device 5 | 1 1 1 2 Storage 2 | 1 . 1 . Processor . | . . . . Hackware . | . . . . Protection . | . . . . Artifact . | . . . . Weapon 9 | 2 1 3 3 Energy Gun 6 | 1 . 2 3 Energy Cannon . | . . . . Ballistic Gun 3 | 1 1 1 . Ballistic Cannon . | . . . . Launcher . | . . . . Special Weapon . | . . . . Impact Weapon . | . . . . Slashing Weapon . | . . . . Piercing Weapon . | . . . . Special Melee Weapon . | . . . . Unidentified Prototypes 1 | . . 1 . Parts Lost 7 | . 1 1 5 Power 1 | . . 1 . Propulsion 2 | . . . 2 Utility 2 | . 1 . 1 Weapon 2 | . . . 2 Highest Loss Streak 5 | . 1 1 5 To Critical Strikes . | . . . . Average Slot Usage (%) 99 | . 98 99 98 Engine 9 | . 14 10 4 Core 1 | . . . 4 Treads 14 | . . 22 13 Leg 19 | . 4 22 22 Wheel 4 | . 23 . . Device 13 | . 12 11 17 Storage 10 | . 14 11 9 Energy Gun 13 | . . 10 26 Ballistic Gun 10 | . 28 11 . Naked Turns . | . . . . Heaviest Build 26 | 12 12 22 26 Greatest Support 30 | 20 20 20 30 Greatest Overweight (x) 1 | . . 1 1 Average Overweight (x) . | . . . . Largest Inventory Capacity 10 | 8 8 10 10 Average Capacity 9 | 6 8 8 10 Most Carried 10 | 6 8 10 10 Average Carried 8 | 4 7 8 9 Final Capacity 10 | 8 8 10 10 Final Carried 10 | 6 8 10 7 Class Distribution -------------------- 62% | Mutant 27% | Scavenger-Skirmisher 10% | Scavenger-Mutant Dominant Class ---------------- Mutant | -10/Materials Mutant | -9/Materials Scavenger-Skirmisher | -8/Materials Resources | -11 -10 -9 -8 ----------- Run | Scr Mat Mat Mat Matter Collected 631 | 276 124 171 60 Remotely 142 | 116 26 . . Salvage Created 1688 | 90 239 623 736 Parts 100 | 3 24 40 33 Haulers Intercepted 2 | . . 1 1 Recyclers Shooed 3 | . . 2 1 Parts Field Recycled . | . . . . Retrieved Matter . | . . . . Parts Self-Destructed . | . . . . Prevented . | . . . . Kills | -11 -10 -9 -8 ------- Run | Scr Mat Mat Mat Combat Hostiles Destroyed 36 | . 9 13 14 Guns 30 | . 9 9 12 AOE 5 | . . 4 1 Classes Destroyed 10 | 1 3 5 1 Worker 2 | . 1 . 1 Builder 1 | . . 1 . Hauler 2 | . . 1 1 Recycler 2 | 1 . 1 . Swarmer 14 | . 6 4 4 Grunt 17 | . 3 6 8 Brawler 1 | . . 1 . Duelist 1 | . . 1 . Sentry 2 | . . 1 1 Hunter 1 | . . . 1 Best Kill Streak 7 | 1 5 7 5 Combat Bots Only 7 | . 3 7 4 Max Kills in Single Turn 3 | 1 1 3 2 Gunslinging 1 | . . 1 1 Exploded 2 | . . 2 1 Melee . | . . . . Uniques/NPCs Destroyed . | . . . . Combat | -11 -10 -9 -8 -------- Run | Scr Mat Mat Mat Damage Taken 1286 | 32 209 380 665 Core 196 | 16 58 59 63 Absorbed by Shields . | . . . . Core Remaining (%) 82 | 93 70 85 . Volleys Fired 86 | 6 21 33 26 Largest 3 | 2 2 2 3 Hottest 140 | 60 40 90 140 Shots Fired 188 | 12 42 66 68 Gun 188 | 12 42 66 68 Cannon . | . . . . Launcher . | . . . . Special . | . . . . Kinetic 86 | 6 42 38 . Thermal . | . . . . Explosive . | . . . . Electromagnetic 102 | 6 . 28 68 Robot Hit Streak 19 | 3 6 14 19 Robot Miss Streak 5 | 1 2 3 5 Penetration Max . | . . . . Secondary Targets 5 | . . 2 3 Max Gunslinging Chain 1 | . . 1 1 Shots Hit Robots 138 | 7 25 49 57 Core Hits 81 | 2 15 27 37 Critical Kills . | . . . . Critical Parts Destroyed 1 | . 1 . . Critical Strikes 1 | . 1 . . Destroy 1 | . 1 . . Melee Attacks . | . . . . Impact . | . . . . Slashing . | . . . . Piercing . | . . . . Sneak Attacks . | . . . . Combat Hostiles . | . . . . Follow-up Attacks . | . . . . Damage Inflicted 2323 | 96 261 798 1168 Guns 1947 | 64 261 649 973 Cannons . | . . . . Explosions 375 | 32 . 149 194 Melee . | . . . . Ramming 1 | . . . 1 Kinetic 575 | 39 261 275 . Thermal 375 | 32 . 149 194 Explosive . | . . . . Electromagnetic 1372 | 25 . 374 973 Impact . | . . . . Slashing . | . . . . Piercing . | . . . . Highest Corruption . | . . . . Average Corruption . | . . . . Corruption Purged . | . . . . Corruption Blocked . | . . . . Overload Shots . | . . . . Overflow Damage 12 | . . . 12 Projectiles . | . . . . Explosions 12 | . . . 12 Melee . | . . . . Knockbacks . | . . . . Impact . | . . . . Kinetic . | . . . . Secondary . | . . . . Self-Inflicted Damage 121 | 32 . 33 56 Shots 3 | 1 . 1 1 Rammed . | . . . . Targets Rammed 1 | . . . 1 Kicked 1 | . . . 1 Crushed . | . . . . Highest Temperature 199 | 52 12 21 199 Average Temperature 48 | 31 9 5 62 Received Heat Transfer 414 | . 30 123 261 Siege Activations . | . . . . Robots Corrupted 1 | . . . 1 Combat Hostiles 1 | . . . 1 Parts Fried 9 | . . 2 7 Impact Corruptions . | . . . . Robots Melted . | . . . . Combat Hostiles . | . . . . Parts Melted . | . . . . Heat Transferred 350 | 50 . 150 150 Parts Sabotaged . | . . . . Parts Stolen . | . . . . Parts Stripped . | . . . . Power Chain Reactions 4 | 1 . 2 1 Missiles Intercepted . | . . . . Alert | -11 -10 -9 -8 ------- Run | Scr Mat Mat Mat Peak Influence 546 | 5 293 365 546 Initial 154 | . 3 123 154 Average 194 | 1 153 196 249 Maximum Alert Level 2 | . 1 1 2 Low Security (%) 56 | 100 61 58 42 Level 1 39 | . 38 41 43 Level 2 4 | . . . 14 Level 3 . | . . . . Level 4 . | . . . . Level 5 . | . . . . High Security . | . . . . Max Security . | . . . . Squads Dispatched 7 | . 3 . 4 Investigation 2 | . 1 . 1 Extermination . | . . . . Reinforcement 4 | . 2 . 2 Assault . | . . . . Garrison 1 | . . . 1 Intercept . | . . . . Searches Triggered . | . . . . Construction Impeded . | . . . . Haulers Reinforced . | . . . . Active Scanning Responses . | . . . . Cargo Convoy Interrupts . | . . . . Stealth | -11 -10 -9 -8 --------- Run | Scr Mat Mat Mat Distress Signals 6 | . 3 1 2 Communications Jammed . | . . . . Distress Signals . | . . . . Times Spotted 58 | . 14 17 27 Peak Tracking Total 9 | . 5 8 9 Tactical Retreats 5 | . 1 2 2 Traps | -11 -10 -9 -8 ------- Run | Scr Mat Mat Mat Traps Triggered 2 | . 1 1 . Indirectly . | . . . . Trap Hack Attempts . | . . . . Triggered . | . . . . Disarmed . | . . . . Reprogrammed . | . . . . Reused . | . . . . Traps Extracted . | . . . . Installed . | . . . . Triggered . | . . . . Machines | -11 -10 -9 -8 ---------- Run | Scr Mat Mat Mat Machines Disabled 2 | . . . 2 Max in Single Turn 2 | . . . 2 Machines Sabotaged . | . . . . Garrisons Compromised . | . . . . Overloaded Fab Kills . | . . . . Hacking | -11 -10 -9 -8 --------- Run | Scr Mat Mat Mat Machines Accessed 6 | . . 3 3 Terminals 5 | . . 2 3 Fabricators . | . . . . Repair Stations 1 | . . 1 . Recycling Units . | . . . . Scanalyzers . | . . . . Garrison Access . | . . . . Total Hacks 14 | . . 7 7 Successful 3 | . . 3 . Failed 11 | . . 4 7 Catastrophic 5 | . . . 5 Database Lockouts . | . . . . Manual 8 | . . 1 7 Terminals 12 | . . 5 7 Fabricators . | . . . . Repair Stations 2 | . . 2 . Recycling Units . | . . . . Scanalyzers . | . . . . Garrison Access . | . . . . Terminal Hacks 2 | . . 2 . Level Access Points 1 | . . 1 . Alert Level 1 | . . 1 . Fabricator Hacks . | . . . . Repair Station Hacks 1 | . . 1 . Scan Component 1 | . . 1 . Recycling Unit Hacks . | . . . . Scanalyzer . | . . . . Garrison Access Hacks . | . . . . Unauthorized Hacks . | . . . . Terminals . | . . . . Fabricators . | . . . . Repair Stations . | . . . . Recycling Units . | . . . . Scanalyzers . | . . . . Garrison Access . | . . . . Data Cores Recovered . | . . . . Used . | . . . . Hacking Detections 5 | . . 2 3 Full Trace Events 1 | . . . 1 Feedback Events . | . . . . Feedback Blocked . | . . . . Robot Schematics Acquired . | . . . . Robots Built . | . . . . Authchips . | . . . . Time . | . . . . Total Robot Build Rating . | . . . . Part Schematics Acquired . | . . . . Parts Built . | . . . . Authchips . | . . . . Time . | . . . . Total Part Build Rating . | . . . . Parts Repaired . | . . . . Time . | . . . . Parts Recycled . | . . . . Recycled Matter . | . . . . Retrieved Matter . | . . . . Retrieved Components . | . . . . Parts Scanalyzed . | . . . . Part Schematics Acquired . | . . . . Parts Damaged . | . . . . Bothacking | -11 -10 -9 -8 ------------ Run | Scr Mat Mat Mat Used RIF Installer . | . . . . Robots Hacked . | . . . . Non-combat . | . . . . Combat . | . . . . Robot Hacks Applied . | . . . . Relay Couplers Released . | . . . . Fabnet Peak Effective % . | . . . . Robots Rewired . | . . . . Allies Hacked . | . . . . Hacks Repelled . | . . . . Allies | -11 -10 -9 -8 -------- Run | Scr Mat Mat Mat Total Allies . | . . . . Largest Group . | . . . . Highest-Rated Group . | . . . . Highest-Rated Ally . | . . . . Total Orders . | . . . . Ally Attacks . | . . . . Total Damage . | . . . . Kills . | . . . . Allies Corrupted . | . . . . Allies Melted . | . . . . Intel | -11 -10 -9 -8 ------- Run | Scr Mat Mat Mat Robot Analysis Total . | . . . . Derelict Logs Recovered . | . . . . Drone Launches . | . . . . Drone Recoveries . | . . . . Exploration | -11 -10 -9 -8 ------------- Run | Scr Mat Mat Mat Turns Passed 1305 | 76 226 589 414 Spaces Moved 703 | 54 143 314 192 Core 1 | 1 . . . Treads . | . . . . Legs 534 | . 28 314 192 Wheels 168 | 53 115 . . Hover . | . . . . Flight . | . . . . Fastest Speed 50 | 50 80 120 120 Average Speed 130 | 79 87 146 151 Slowest Speed 190 | 80 120 190 190 Overloaded Moves . | . . . . Propulsion Burnouts . | . . . . Robots Hopped . | . . . . Cave-ins Triggered . | . . . . Exploration Rate (%) 24 | 3 36 28 29 Regions Visited 3 Branch Regions . Pre-discovered Areas . | . . . . Known Exits Taken 1 | . . 1 . Unknown Exits Taken 2 | 1 1 . . Scrap Searched . | . . . . Spaces Dug . | . . . . Terrain Destroyed 12 | . . 8 4 Melee . | . . . . Projectile . | . . . . AOE 12 | . . 8 4 Terrain Rammed . | . . . . Walls Destroyed . | . . . . Machines Disabled . | . . . . Actions | -11 -10 -9 -8 --------- Run | Scr Mat Mat Mat Total 924 | 72 204 386 262 Wait 72 | . 33 15 24 Move 700 | 53 142 313 192 Hop . | . . . . Pick Up 19 | 6 3 6 4 Fast Attach 11 | 7 1 2 1 Attach 8 | . . 3 5 Detach 3 | . . 2 1 Swap 11 | . 3 5 3 Drop 13 | . 1 7 5 Fire 86 | 6 21 33 26 Melee . | . . . . Ram . | . . . . Kick 1 | . . . 1 Crush . | . . . . Escape Stasis . | . . . . Rewire . | . . . . Trap . | . . . . Miscellaneous . | . . . . Route ------- -11/Scrapyard -10/Materials -9/Materials (discovered 4 exits: *Mat x3 / [*Sto]) -8/Materials History --------- Turn | Location | Event 11 | -11/Scrapyard | Discovered new exit (range 14) 77 | -11/Scrapyard | Entered Materials 297 | -10/Materials | Discovered new exit (range 6) 303 | -10/Materials | Entered another Materials area 303 | -9/Materials | Evolved 2 slots: Propulsion x2 325 | -9/Materials | Build established: Mutant 738 | -9/Materials | Identified exit to Materials 812 | -9/Materials | Destroyed 7 combat bots 839 | -9/Materials | Discovered new exit (range 11) 892 | -9/Materials | Entered another Materials area 892 | -8/Materials | Evolved 2 slots: Utility x1, Weapon x1 1187 | -8/Materials | Build established: Scavenger-Skirmisher 1282 | -8/Materials | Garrison activated, responded to threat 1306 | -8/Materials | Self-destructed Last Messages --------------- 01298_ K-01 Serf collects debris. 01298_ U-05 Engineer lays Concrete. 01298_ Aluminum Leg destroyed. 01299_ U-05 Engineer lays Concrete. 01300_ Slug penetrates Terminal. 01300_ U-05 Engineer lays Concrete. 01301_ K-01 Serf cleans the Terminal. 01301_ R-06 Scavenger collects Imp. Signal Interpreter. 01301_ U-05 Engineer lays Concrete. 01303_ U-05 Engineer builds a Wall. 01303_ Lgt. Nuclear Core fried. 01303_ G-47 Trooper destroyed. 01303_ Switching to secondary target: G-47 Trooper. 01303_ G-47 Trooper IFF system glitched. 01304_ U-05 Engineer lays Concrete. 01304_ K-01 Serf cleans the Terminal. 01304_ Critical hit (Burn: +37). 01305_ U-05 Engineer lays Concrete. 01305_ Aluminum Leg destroyed. 01305_ W-25 Informer sends out distress signal. Map ----- +----------------------------------------------------+ | ?????????????????#???????????????????????????????? | | ??????????????#??????????????????????????????????? | | ???????? ???????????????????????????????????????? | | ?????##+##?#???#? ???????????????????????????????? | | ?#??? ?#?#?????????? ????????????????????????? | | #???? ?????? ???? ???????????????????????????? | | ???? ? T ???? ?????? ????????????????????????????? | | #?#??? ????????????????????????????????????????? | | ?????? ??????????? ????? #????"T?????????????? | | ??????# ##??#?#??????????? # ? ?????????????? | | ?????## ##????#????????#?? # ??????????????? | | ####### ###??#????######## / ?????????????????? | | =# [#????#??# #???????????????????? | | = # %%#########%% ^^ #???????????????????? | | / *%=%*[[%[%%g #??"????????????????? | | T" # !=###########w#### #? ?????????????????? | | "" # *#??????#?##/#### ##???????????#??????? | | ## ########??# r # ###########?????????? | | ###### # !##?# kT # #?????????? | | ?????# +%= #??# o # #?????????? | | ??#?## #%= #??#""" u#"" #?????????? | | ???#?# #[! #??#" *#"" #?????????? | | ###### # #??#" u=%;"T #?????????? | | # #??# =t=;"" ##???????????? | | #+######??#" ;""h """ ##?????#?????? | | ##???##?#" @*%Y """ #????????????? | | #?#######""" #ug """ #????????????? | | #??# # # u Y #????????????? | | """"""" #?## " ####### Y #????????????? | | """"""" #??# T #????? """ #???? ???????? | | """"""" #??# " #????# """ #???????????? | | """"""" #### ##???# """ +???????????? | | """"""" + #????# #???????????? | | # ##???# ? #???????????? | | # #??#?###+#### ?????????????? | | + !##????? ????? ????????????? | | ########?????? ??????###?????????????? | | !! # #?????? ??????????????????????? | | !! # #?????????????????????????????? | | ! # #???????? ????????????????????? | | +% #?#? ?????????????????????????? | | % # [ #?????????????????????????????? | | ########## ## #?????????????????????????????? | | ####?#???# #########??? ?????????????????????????? | | ##?# #?????????????????????????????????????? | | " """ #??# #??#???#??????????????????????????????? | | " """ #??# #?#???????????????????????????????????? | | " """ #??# ######?##??#??????????????????????????? | | ##?# ## #?????????????????????????????? | | ! #### ## """ #??#??????????????????????????? | +----------------------------------------------------+ Best States ------------- Heat Dissipation 41 Energy Generation 14 Energy Capacity 250 Matter Stores 300 Matter Capacity 300 Sight Range 16 Terrain Scan Range 16 Terrain Scan Density 10 Evasion (%) 55 Recoil Reduction 1 Item Schematics ----------------- None Robot Schematics ------------------ None Fabricated ------------ Nothing Alien Tech Used ----------------- None Achievements -------------- None Challenges ------------ None Game ------ Seed HardenedNeutrinoGuard Manual? 0 Play Time 00:18:39 Cumulative 43.4 hours Start 2022.03.25 @ 22:31:44 End 2022.03.25 @ 22:45:53 Sessions 1 Manual Loads 0 Difficulty Rogue Special Mode None Game No. 77 Rogue 77 Adventurer 0 Explorer 0 Win Type - Total 0 Types 0/0/0/0/0/0/0/0/0 Lore% 36 Gallery% 43 Achievement% 30 Wizard Run 0 Options --------- ASCII 0 Keyboard 0 Movement Numpad Keybinds 0 Fullscreen 1 Font 18/SmallcapsGlow Map View 76x50 Tactical HUD 1 Map Filters NONE Filters NONE Steam 1 RUN: e1ab41c0-696b-463f-a010-04f28ac52214